[Event "XTX Markets London Masters 2024"]
[Site "London"]
[Date "2024.11.30"]
[Round "3.35"]
[White "Smith, Andrew Philip"]
[Black "Li, Jack"]
[Result "1/2-1/2"]
[ECO "B33"]
[WhiteElo "2136"]
[BlackElo "1717"]
[Annotator "RC"]
[PlyCount "81"]
[EventDate "2024.11.28"]
[EventType "swiss"]
[EventCountry "ENG"]
[SourceTitle "playchess.com"]
[Source "ChessBase"]
[SourceQuality "1"]
[TimeControl "40/5400+30:1800+30"]

1. e4 {[%emt 0:00:03]} c5 {[%emt 0:00:06]} 2. Nf3 {[%emt 0:00:07]} e6 {[%emt 0:00:05]} 3. d4 {[%emt 0:01:22]} cxd4 {[%emt 0:00:05]} 4. Nxd4 {[%emt 0:00:04]} Nc6 {[%emt 0:00:06]} 5. Nb5 {[%emt 0:00:33]} Nf6 {[%emt 0:06:18]} 6. N1c3 {[%emt 0:01:07]} d6 {[%emt 0:01:34]} 7. Bf4 {[%emt 0:00:28]} e5 {[%emt 0:00:05]} 8. Bg5 {[%emt 0:00:09]} a6 {[%emt 0:00:11]} 9. Na3 {[%emt 0:00:41]} b5 {[%emt 0:02:46]} 10. Nd5 {[%emt 0:02:18]} Be7 {[%emt 0:00:09]} 11. Nxe7 {[%emt 1:29:08]} Nxe7 {[%emt 0:02:04]} 12. Bxf6 {[%emt 0:00:00]} gxf6 {[%emt 0:00:05]} 13. Qf3 {[%emt 0:00:00]} f5 {[%emt 0:07:22]} 14. exf5 {[%emt 0:00:00]} Bxf5 {[%emt 0:00:09]} 15. Bd3 {[%emt 0:00:00]} Bxd3 {[%emt 0:08:03]} 16. Qxd3 {[%emt 0:00:00]} Qc7 {[%emt 0:06:21]} 17. O-O {[%emt 0:00:00]} d5 {[%emt 0:07:31]} 18. c3 {[%emt 0:00:00]} O-O {[%emt 0:11:04]} 19. Nc2 {[%emt 0:00:00]} Rad8 {[%emt 0:00:28]} 20. a4 {[%emt 0:00:00]} Ng6 {[%emt 0:05:48]} 21. axb5 {[%emt 0:00:00]} Nf4 {[%emt 0:00:20]} 22. Qf5 {[%emt 0:00:00]} axb5 {[%emt 0:01:16]} 23. Ne3 {[%emt 0:00:00]} Qd6 {[%emt 0:09:28]} 24. Ra5 {[%emt 0:00:00]} d4 {[%emt 0:13:21]} 25. Ng4 {[%emt 0:07:00]} Qg6 {[%emt 0:03:48]} 26. Qxg6+ {[%emt 0:00:00]} hxg6 {[%emt 0:06:15]} 27. Rxb5 {[%emt 0:00:00]} dxc3 {[%emt 0:00:30]} 28. bxc3 {[%emt 0:00:00]} Ne2+ {[%emt 0:00:55]} 29. Kh1 {[%emt 0:00:00]} Nxc3 {[%emt 0:00:14]} 30. Rxe5 {[%emt 0:00:00]} Kg7 {[%emt 0:00:39]} 31. g3 {[%emt 0:00:00]} Rfe8 {[%emt 0:00:26]} 32. Rfe1 {[%emt 0:00:00]} Rxe5 {[%emt 0:00:17]} 33. Rxe5 {[%emt 0:00:00]} Nd5 {[%emt 0:00:41]} 34. Re2 {[%emt 0:00:00]} Nf6 {[%emt 0:00:33]} 35. Ne3 {[%emt 0:00:00]} Ne4 {[%emt 0:01:58]} 36. Kg2 {[%emt 0:00:00]} Nf6 {[%emt 0:02:10]} 37. Kf3 {[%emt 0:06:00]} Rd4 {[%emt 0:01:17]} 38. h4 {[%emt 0:00:00]} Nd7 {[%emt 0:01:35]} 39. Nc2 {[%emt 0:00:00]} Rd3+ {[%emt 0:00:13]} 40. Kf4 {[%emt 0:00:00]} Nc5 {[%emt 0:00:33]} 41. Ne1 {[%emt 0:08:07]} 1/2-1/2

[Event "XTX Markets London Masters 2024"]
[Site "London"]
[Date "2024.11.30"]
[Round "3.36"]
[White "Manmay Chopra"]
[Black "Dignam, Matthew"]
[Result "1/2-1/2"]
[ECO "B07"]
[WhiteElo "2217"]
[BlackElo "2123"]
[Annotator "RC"]
[PlyCount "61"]
[EventDate "2024.11.28"]
[EventType "swiss"]
[EventCountry "ENG"]
[SourceTitle "playchess.com"]
[Source "ChessBase"]
[SourceQuality "1"]
[TimeControl "40/5400+30:1800+30"]

1. e4 {[%emt 0:00:03]} d6 {[%emt 0:00:05]} 2. d4 {[%emt 0:00:03]} Nf6 {[%emt 0:00:09]} 3. Nc3 {[%emt 0:00:03]} c6 {[%emt 0:00:05]} 4. f4 {[%emt 0:00:05]} Qa5 {[%emt 0:00:06]} 5. Bd3 {[%emt 0:00:07]} e5 {[%emt 0:00:08]} 6. Nge2 {[%emt 0:00:04]} Bg4 {[%emt 0:00:42]} 7. Be3 {[%emt 0:01:59]} Nbd7 {[%emt 0:03:28]} 8. O-O {[%emt 0:02:36]} Be7 {[%emt 0:03:34]} 9. h3 {[%emt 0:00:38]} exf4 {[%emt 0:00:29]} 10. Bxf4 {[%emt 0:00:22]} Bh5 {[%emt 0:00:18]} 11. Kh1 {[%emt 0:02:49]} O-O {[%emt 0:01:25]} 12. Qe1 {[%emt 0:00:56]} Rfe8 {[%emt 0:03:32]} 13. Ng3 {[%emt 0:18:45]} Bg6 {[%emt 0:05:04]} 14. Qf2 {[%emt 0:08:22]} Nh5 {[%emt 0:06:00]} 15. Nxh5 {[%emt 0:00:51]} Qxh5 {[%emt 0:04:38]} 16. Be2 {[%emt 0:00:13]} Qa5 {[%emt 0:03:28]} 17. Bd3 {[%emt 0:17:45]} Qh5 {[%emt 0:19:57]} 18. Rae1 {[%emt 0:02:11]} Bh4 {[%emt 0:04:53]} 19. Bg3 {[%emt 0:00:03]} Bxg3 {[%emt 0:00:36]} 20. Qxg3 {[%emt 0:00:02]} Rad8 {[%emt 0:07:21]} 21. Qf3 {[%emt 0:13:22]} Qxf3 {[%emt 0:01:39]} 22. gxf3 {[%emt 0:00:08]} Nf6 {[%emt 0:07:02]} 23. f4 {[%emt 0:11:01]} d5 {[%emt 0:02:04]} 24. e5 {[%emt 0:00:11]} Bxd3 {[%emt 0:02:39]} 25. cxd3 {[%emt 0:00:03]} Nh5 {[%emt 0:01:37]} 26. Kg2 {[%emt 0:00:06]} g6 {[%emt 0:01:15]} 27. Ne2 {[%emt 0:01:04]} Ng7 {[%emt 0:00:30]} 28. Ng3 {[%emt 0:01:51]} Ne6 {[%emt 0:00:19]} 29. Ne2 {[%emt 0:00:02]} Ng7 {[%emt 0:00:16]} 30. Ng3 {[%emt 0:00:16]} Ne6 {[%emt 0:00:06]} 31. Ne2 {[%emt 0:00:08]} 1/2-1/2

[Event "XTX Markets London Masters 2024"]
[Site "London"]
[Date "2024.11.30"]
[Round "3.37"]
[White "Birkisson, Bjorn Holm"]
[Black "Sivanandan, Bodhana"]
[Result "1/2-1/2"]
[ECO "C43"]
[WhiteElo "2165"]
[BlackElo "2082"]
[Annotator "RC"]
[PlyCount "95"]
[EventDate "2024.11.28"]
[EventType "swiss"]
[EventCountry "ENG"]
[SourceTitle "playchess.com"]
[Source "ChessBase"]
[SourceQuality "1"]
[TimeControl "40/5400+30:1800+30"]

1. e4 {[%emt 0:11:09]} e5 {[%emt 0:00:19]} 2. Nf3 {[%emt 0:00:11]} Nf6 {[%emt 0:00:12]} 3. d4 {[%emt 0:00:14]} Nxe4 {[%emt 0:00:23]} 4. Bd3 {[%emt 0:00:25]} d5 {[%emt 0:00:25]} 5. Nxe5 {[%emt 0:00:19]} Nd7 {[%emt 0:00:27]} 6. O-O {[%emt 0:03:48]} Bd6 {[%emt 0:01:03]} 7. Nc3 {[%emt 0:02:27]} Nxe5 {[%emt 0:02:10]} 8. dxe5 {[%emt 0:05:11]} Bxe5 {[%emt 0:00:19]} 9. Nxe4 {[%emt 0:01:11]} dxe4 {[%emt 0:00:23]} 10. Bxe4 {[%emt 0:00:07]} Qxd1 {[%emt 0:01:08]} 11. Rxd1 {[%emt 0:00:07]} O-O {[%emt 0:05:45]} 12. Be3 {[%emt 0:03:39]} c6 {[%emt 0:03:55]} 13. Bd4 {[%emt 0:06:41]} Bxd4 {[%emt 0:00:29]} 14. Rxd4 {[%emt 0:00:07]} Be6 {[%emt 0:03:35]} 15. g3 {[%emt 0:12:08]} h6 {[%emt 0:03:32]} 16. h4 {[%emt 0:01:29]} Rad8 {[%emt 0:03:28]} 17. Rad1 {[%emt 0:00:37]} Rxd4 {[%emt 0:00:25]} 18. Rxd4 {[%emt 0:00:06]} Re8 {[%emt 0:01:14]} 19. Bf3 {[%emt 0:06:15]} Kf8 {[%emt 0:02:11]} 20. a3 {[%emt 0:02:59]} Rc8 {[%emt 0:02:37]} 21. Bg4 {[%emt 0:08:30]} Bxg4 {[%emt 0:04:05]} 22. Rxg4 {[%emt 0:00:07]} Rd8 {[%emt 0:01:57]} 23. Kf1 {[%emt 0:00:06]} h5 {[%emt 0:02:31]} 24. Ra4 {[%emt 0:03:02]} a6 {[%emt 0:00:16]} 25. Ke2 {[%emt 0:00:33]} g6 {[%emt 0:00:43]} 26. Re4 {[%emt 0:02:05]} Rd7 {[%emt 0:08:19]} 27. a4 {[%emt 0:03:13]} b5 {[%emt 0:06:12]} 28. axb5 {[%emt 0:01:00]} axb5 {[%emt 0:00:12]} 29. b4 {[%emt 0:00:26]} Rd6 {[%emt 0:05:16]} 30. Ke3 {[%emt 0:02:56]} f5 {[%emt 0:02:14]} 31. Re5 {[%emt 0:05:16]} Kf7 {[%emt 0:01:31]} 32. Rc5 {[%emt 0:00:20]} Kf6 {[%emt 0:00:32]} 33. c4 {[%emt 0:02:22]} bxc4 {[%emt 0:00:34]} 34. Rxc4 {[%emt 0:00:06]} Ke7 {[%emt 0:03:37]} 35. Rd4 {[%emt 0:03:22]} Re6+ {[%emt 0:00:10]} 36. Kf4 {[%emt 0:07:30]} Re2 {[%emt 0:01:06]} 37. Kg5 {[%emt 0:03:39]} Rxf2 {[%emt 0:00:16]} 38. Kxg6 {[%emt 0:00:11]} Rf3 {[%emt 0:00:14]} 39. Rf4 {[%emt 0:00:58]} Rxg3+ {[%emt 0:00:09]} 40. Kxf5 {[%emt 0:00:10]} Rg8 {[%emt 0:20:52]} 41. Rd4 {[%emt 0:34:53]} Rg2 {[%emt 0:32:24]} 42. Rf4 {[%emt 0:00:00]} Rg8 {[%emt 0:00:00]} 43. Re4+ {[%emt 0:00:00]} Kd7 {[%emt 0:00:00]} 44. Kf6 {[%emt 0:00:00]} Rg4 {[%emt 0:00:00]} 45. Kf5 {[%emt 0:00:00]} Rg8 {[%emt 0:00:00]} 46. Kf6 {[%emt 0:00:00]} Rg4 {[%emt 0:00:00]} 47. Kf5 {[%emt 0:00:00]} Rg8 {[%emt 0:00:00]} 48. Kf6 {[%emt 0:00:00]} 1/2-1/2

[Event "XTX Markets London Masters 2024"]
[Site "London"]
[Date "2024.11.30"]
[Round "3.38"]
[White "Subramanian, Anusha"]
[Black "Rocco, Federico"]
[Result "0-1"]
[ECO "A13"]
[WhiteElo "2131"]
[BlackElo "2154"]
[Annotator "RC"]
[PlyCount "96"]
[EventDate "2024.11.28"]
[EventType "swiss"]
[EventCountry "ENG"]
[SourceTitle "playchess.com"]
[Source "ChessBase"]
[SourceQuality "1"]
[TimeControl "40/5400+30:1800+30"]

1. Nf3 {[%emt 0:00:04]} Nf6 {[%emt 0:10:39]} 2. c4 {[%emt 0:00:03]} e6 {[%emt 0:00:36]} 3. g3 {[%emt 0:00:08]} d5 {[%emt 0:00:11]} 4. Bg2 {[%emt 0:00:06]} dxc4 {[%emt 0:00:07]} 5. Qa4+ {[%emt 0:00:05]} Nbd7 {[%emt 0:00:06]} 6. Qxc4 {[%emt 0:00:09]} a6 {[%emt 0:00:08]} 7. O-O {[%emt 0:00:49]} b5 {[%emt 0:00:13]} 8. Qc2 {[%emt 0:00:07]} Bb7 {[%emt 0:00:06]} 9. d3 {[%emt 0:00:21]} Bd6 {[%emt 0:01:23]} 10. b3 {[%emt 0:01:44]} O-O {[%emt 0:01:07]} 11. Bb2 {[%emt 0:00:07]} c5 {[%emt 0:00:30]} 12. Nbd2 {[%emt 0:00:25]} h6 {[%emt 0:00:43]} 13. a4 {[%emt 0:01:06]} Nb6 {[%emt 0:01:01]} 14. e4 {[%emt 0:02:00]} Be7 {[%emt 0:01:12]} 15. Ne5 {[%emt 0:08:22]} Qc7 {[%emt 0:03:43]} 16. f4 {[%emt 0:05:01]} Rac8 {[%emt 0:04:09]} 17. f5 {[%emt 0:06:33]} Bd6 {[%emt 0:02:39]} 18. Nef3 {[%emt 0:14:08]} e5 {[%emt 0:00:23]} 19. a5 {[%emt 0:01:20]} Nbd7 {[%emt 0:00:20]} 20. Rfe1 {[%emt 0:02:31]} Nb8 {[%emt 0:01:18]} 21. h3 {[%emt 0:09:00]} Nc6 {[%emt 0:01:33]} 22. g4 {[%emt 0:01:50]} Nxa5 {[%emt 0:02:43]} 23. b4 {[%emt 0:04:19]} Nc6 {[%emt 0:00:23]} 24. bxc5 {[%emt 0:02:51]} Nb4 {[%emt 0:00:13]} 25. Qb3 {[%emt 0:01:07]} Bxc5+ {[%emt 0:03:02]} 26. Kh1 {[%emt 0:01:03]} Nc6 {[%emt 0:00:38]} 27. Rac1 {[%emt 0:01:11]} Qe7 {[%emt 0:00:28]} 28. g5 {[%emt 0:09:49]} hxg5 {[%emt 0:00:27]} 29. Nxg5 {[%emt 0:04:05]} Nh5 {[%emt 0:02:08]} 30. Ngf3 {[%emt 0:04:02]} Bf2 {[%emt 0:00:32]} 31. Red1 {[%emt 0:01:00]} Nd4 {[%emt 0:01:07]} 32. Nxd4 {[%emt 0:02:55]} exd4 {[%emt 0:00:13]} 33. Nf3 {[%emt 0:01:16]} Rxc1 {[%emt 0:01:33]} 34. Rxc1 {[%emt 0:00:42]} Qd6 {[%emt 0:00:11]} 35. e5 {[%emt 0:01:28]} Qh6 {[%emt 0:00:10]} 36. Rc2 {[%emt 0:08:41]} Ng3+ {[%emt 0:00:24]} 37. Kh2 {[%emt 0:00:08]} Nf1+ {[%emt 0:00:25]} 38. Kh1 {[%emt 0:01:13]} Bxf3 {[%emt 0:00:31]} 39. Rxf2 {[%emt 0:00:46]} Qxh3+ {[%emt 0:00:18]} 40. Kg1 {[%emt 0:00:14]} Bxg2 {[%emt 0:00:13]} 41. Rxg2 {[%emt 0:30:30]} Ne3 {[%emt 0:30:14]} 42. Rg6 {[%emt 0:06:52]} Kh8 {[%emt 0:01:27]} 43. Qb4 {[%emt 0:00:00]} Rg8 {[%emt 0:00:00]} 44. f6 {[%emt 0:00:00]} fxg6 {[%emt 0:00:00]} 45. fxg7+ {[%emt 0:00:00]} Kh7 {[%emt 0:00:00]} 46. Qd2 {[%emt 0:00:00]} Qf1+ {[%emt 0:00:00]} 47. Kh2 {[%emt 0:00:00]} Kxg7 {[%emt 0:00:00]} 48. Bxd4 {[%emt 0:00:00]} Rh8+ {[%emt 0:00:00]} 0-1

[Event "XTX Markets London Masters 2024"]
[Site "London"]
[Date "2024.11.30"]
[Round "3.39"]
[White "Zhou, Yang-Fan"]
[Black "Gallana, Marco"]
[Result "1-0"]
[ECO "B33"]
[WhiteElo "2418"]
[BlackElo "2216"]
[Annotator "TA"]
[PlyCount "65"]
[EventDate "2024.11.28"]
[EventType "swiss"]
[EventCountry "ENG"]
[SourceTitle "playchess.com"]
[Source "ChessBase"]
[SourceQuality "1"]
[TimeControl "40/5400+30:1800+30"]

{[%evp 16,65,56,-2,44,-5,42,37,25,14,33,20,18,20,16,21,17,22,34,25,30,28,21,0,20,0,0,0,0,0,0,0,6,-9,32,22,75,14,48,14,319,326,1692,1385,1315,1902,1978,1835,29969,29969,29987,29988]} 1. e4 {[%emt 0:03:15]} c5 {[%emt 0:00:16]} 2. Nf3 {[%emt 0:00:11]} Nc6 {[%emt 0:00:21]} 3. d4 {[%emt 0:00:06]} cxd4 {[%emt 0:00:08]} 4. Nxd4 {[%emt 0:00:05]} Nf6 {[%emt 0:00:39]} 5. Nc3 {[%emt 0:00:12]} e5 {[%emt 0:00:13]} 6. Ndb5 {[%emt 0:00:04]} d6 {[%emt 0:00:16]} 7. Bg5 {[%emt 0:00:06]} a6 {[%emt 0:00:12]} 8. Na3 {[%emt 0:00:08]} b5 {[%emt 0:00:12]} 9. Nab1 {[%emt 0:00:09]} (9. Bxf6 $1 $14 gxf6 10. Nd5) 9... Ne7 {[%emt 0:00:18]} (9... Be7 $11 {is superior.}) 10. a3 {[%emt 0:05:10]} (10. Bd3 $14) 10... d5 {[%emt 0:09:32]} (10... Bb7 $11) 11. Bxf6 $14 {[%emt 0:18:45]} gxf6 {[%emt 0:00:14] White is slightly better.} 12. Nxd5 {[%emt 0:00:04]} Nxd5 {[%emt 0:00:20]} 13. Qxd5 {[%emt 0:01:27]} Qxd5 {[%emt 0:00:10]} 14. exd5 {[%emt 0:00:04]} Bf5 {[%emt 0:04:49]} 15. c4 {[%emt 0:00:42]} bxc4 {[%emt 0:02:56]} 16. Nd2 {[%emt 0:11:19]} c3 {[%emt 0:14:57]} 17. bxc3 {[%emt 0:00:15]} Rc8 {[%emt 0:00:09]} 18. Bxa6 {[%emt 0:15:51]} Rxc3 {[%emt 0:00:14][%cal Oh8g8]} 19. Bb5+ {[%emt 0:00:04]} Kd8 {[%emt 0:12:38][%cal Oh8g8]} 20. Ke2 {[%emt 0:01:02]} Rg8 {[%emt 0:11:19]} 21. g3 {[%emt 0:02:59]} Rg4 {[%emt 0:03:07][%cal Of8h6] ...Bh6! is the strong threat.} 22. Rhc1 {[%emt 0:06:02]} Rxc1 {[%emt 0:04:58]} 23. Rxc1 {[%emt 0:00:02]} Rd4 {[%emt 0:00:18][%cal Of8h6] [#] Threatens to win with ...Bh6!} 24. Nb3 {[%emt 0:07:54]} Rxd5 {[%emt 0:00:36]} 25. a4 {[%emt 0:01:08]} e4 {[%emt 0:06:37]} (25... Bb4 $11) 26. f4 {[%emt 0:10:10]} (26. Bc4 $16 Bg4+ 27. Kf1 Rd1+ 28. Rxd1+ Bxd1 29. a5 (29. Bxf7 Bb4 $11)) 26... Be6 {[%emt 0:05:51]} 27. Na5 {[%emt 0:04:30] [#] And now Nb7+ would win.} Bg4+ $2 {[%emt 0:08:00][%mdl 8192] This move loses the game for Black.} (27... f5 $11 {and Black has nothing to worry.}) 28. Ke3 $18 {[%emt 0:01:32]} Rd1 $2 {[%emt 0:05:14]} ({Avoid the trap} 28... Bc5+ $2 29. Rxc5 Rxc5 30. Nb7+ (30. Kxe4 Rc1 $17) 30... Kc7 31. Nxc5 $18) (28... Bd6 29. Kxe4 Rh5 30. Nb7+ (30. Nc6+ Kd7 $18) 30... Ke7 31. Nxd6 Kxd6 32. Rc6+ Ke7 33. Rc7+ Kf8) 29. Nb7+ {[%emt 0:03:52]} Ke7 {[%emt 0:01:29]} 30. Rxd1 {[%emt 0:01:07]} Bxd1 {[%emt 0:00:21]} 31. a5 {[%emt 0:00:02][%cal Ba4a5,Ba5a6][%mdl 32] White wants to mate with a6!} Bb3 {[%emt 0:01:04]} 32. a6 {[%emt 0:01:27]} (32. Kxe4 f5+ 33. Kd4 (33. Kxf5 Bd5 $18) 33... Bd1 $18) 32... Bd5 {[%emt 0:00:37]} 33. Kd4 {[%emt 0:00:54] Weighted Error Value: White=0.17 (very precise) /Black=0.69.  Loses game:     	---       	Black=1      Mistake:       	White=2     	Black=3      Inaccurate:     	White=1     	Black=2      OK:         	White=7     	Black=7      Best:        	White=3     	---} 1-0